bitfinex/quotes_SOLUSD_20241024
["timestamp","ask_amount","ask_price","bid_price","bid_amount"]
[1729782750280,34.79456036,176.23,176.18,20.0]
[1729782750594,34.79456036,176.23,176.18,54.79456036]
[1729782751165,34.79456036,176.23,176.18,34.79456036]
[1729782751873,34.79456036,176.24,176.18,34.79456036]
[1729782753192,34.79456036,176.24,176.19,34.79456036]
[1729782753396,34.79456036,176.23,176.18,34.79456036]
[1729782754098,34.79456036,176.24,176.19,34.79456036]
[1729782755398,34.79456036,176.22,176.17,54.79456036]
[1729782755581,40.46876036,176.24,176.18,34.79456036]
[1729782757210,34.79456036,176.24,176.18,34.79456036]
[1729782757586,34.79456036,176.25,176.2,34.79456036]
[1729782758205,34.79456036,176.26,176.2,34.79456036]
[1729782758415,34.92005036,176.27,176.21,34.79456036]
[1729782758906,34.79456036,176.25,176.2,34.79456036]
[1729782759612,0.12549,176.27,176.23,34.79456036]
[1729782759799,34.79456036,176.29,176.23,34.79456036]
[1729782760507,34.79456036,176.29,176.24,34.79456036]
[1729782760711,34.92005036,176.3,176.24,34.79456036]
[1729782761083,0.12549,176.3,176.26,34.79456036]
[1729782761494,34.79456036,176.33,176.28,34.79456036]
[1729782761727,34.79456036,176.34,176.29,34.79456036]
[1729782762009,34.79456036,176.34,176.28,34.79456036]
[1729782762384,34.79456036,176.33,176.28,34.79456036]
[1729782762585,0.5907256,176.35,176.32,34.79456036]
[1729782762818,0.5907256,176.35,176.33,34.79456036]
[1729782763181,0.5907256,176.35,176.32,34.79456036]
[1729782763381,0.5907256,176.35,176.31,34.79456036]
[1729782764813,0.5907256,176.35,176.3,34.79456036]
[1729782765008,35.38528596,176.35,176.3,34.79456036]
[1729782765321,0.5907256,176.35,176.3,34.79456036]
[1729782765822,35.38528596,176.35,176.24,15.2921]
[1729782766011,34.79456036,176.33,176.28,34.79456036]
[1729782766203,34.79456036,176.3,176.24,50.08666036]
[1729782766403,34.79456036,176.32,176.27,34.79456036]
[1729782766709,34.79456036,176.31,176.26,34.79456036]
[1729782767516,34.79456036,176.3,176.25,34.79456036]
[1729782767713,34.79456036,176.3,176.24,34.79456036]
[1729782768808,34.79456036,176.28,176.23,34.79456036]
[1729782768995,34.79456036,176.28,176.23,20.0]
[1729782769189,34.79456036,176.29,176.23,54.79456036]
[1729782769908,34.79456036,176.29,176.23,34.79456036]
[1729782770693,22.6079156,176.35,176.2,34.79456036]
[1729782770694,34.79456036,176.25,176.2,34.79456036]
[1729782770913,34.79456036,176.25,176.19,34.79456036]
[1729782771323,34.79456036,176.24,176.19,34.79456036]
[1729782771626,34.79456036,176.25,176.19,34.79456036]
[1729782772122,34.79456036,176.25,176.2,54.79456036]
[1729782773118,34.79456036,176.25,176.2,34.79456036]
[1729782775239,34.79456036,176.23,176.18,34.79456036]
[1729782776522,5.6731,176.27,176.2,34.79456036]
[1729782776705,34.79456036,176.25,176.2,34.79456036]
[1729782777033,34.79456036,176.24,176.19,34.79456036]
[1729782777521,34.79456036,176.23,176.18,34.79456036]
[1729782778325,34.79456036,176.22,176.16,49.79866036]
[1729782778630,34.79456036,176.22,176.17,20.0]
[1729782779313,5.6741,176.24,176.17,20.0]
[1729782779314,34.79456036,176.21,176.17,20.0]
[1729782779827,34.79456036,176.22,176.17,54.79456036]
[1729782780414,17.39728018,176.23,176.18,17.39728018]
[1729782780606,34.79456036,176.24,176.19,34.79456036]
[1729782780808,34.79456036,176.26,176.21,34.79456036]
[1729782781104,34.79456036,176.25,176.2,34.79456036]
[1729782781308,34.79456036,176.25,176.17,20.0]
[1729782781309,34.79456036,176.24,176.19,34.79456036]
[1729782781704,34.79456036,176.25,176.2,34.79456036]
[1729782782713,20.4631,176.32,176.17,20.0]
[1729782782714,21.6886,176.32,176.24,34.79456036]
[1729782782912,62.15466036,176.32,176.26,34.79456036]
[1729782783306,15.4049,176.32,176.28,34.79456036]
[1729782783511,34.79456036,176.34,176.29,34.79456036]
[1729782783804,34.79456036,176.3,176.25,34.79456036]
[1729782784016,34.79456036,176.28,176.23,34.79456036]
[1729782784214,34.79456036,176.29,176.24,34.79456036]
[1729782786041,34.92005036,176.31,176.25,34.79456036]
[1729782786240,34.92005036,176.31,176.26,34.79456036]
[1729782786445,34.92005036,176.31,176.25,34.79456036]
[1729782786649,34.79456036,176.3,176.25,34.79456036]
[1729782788945,34.79456036,176.27,176.22,34.79456036]
[1729782789152,34.79456036,176.27,176.21,34.79456036]
[1729782790146,5.92368,176.29,176.22,34.79456036]
[1729782790316,34.79456036,176.28,176.23,17.39728018]
[1729782790520,34.79456036,176.29,176.23,34.79456036]
[1729782790715,0.6907256,176.35,176.24,34.79456036]
[1729782790716,34.79456036,176.3,176.24,34.79456036]
[1729782790946,34.79456036,176.31,176.26,34.79456036]
[1729782791144,34.92005036,176.3,176.25,34.79456036]
[1729782791819,34.92005036,176.3,176.24,34.79456036]
[1729782792018,34.79456036,176.29,176.23,34.79456036]
[1729782792416,34.79456036,176.27,176.22,34.79456036]
[1729782793125,34.79456036,176.28,176.22,34.79456036]
[1729782796029,34.79456036,176.28,176.23,34.79456036]
[1729782796431,34.79456036,176.28,176.17,23.876884]
[1729782796432,22.2669297,176.29,176.24,22.2669297]
[1729782798155,0.12549,176.3,176.24,22.2669297]
[1729782798444,22.2669297,176.29,176.24,22.2669297]
[1729782798648,22.3924197,176.3,176.25,22.2669297]
[1729782798821,22.3924197,176.3,176.18,20.0]
[1729782798822,22.2669297,176.34,176.28,22.2669297]
[1729782799025,22.2669297,176.33,176.28,22.2669297]
[1729782799255,22.2669297,176.33,176.27,22.2669297]
[1729782799552,22.3924197,176.34,176.29,22.2669297]
[1729782799720,22.8576553,176.35,176.29,11.13346485]
[1729782799926,22.2669297,176.34,176.28,22.2669297]
[1729782801041,22.9831453,176.35,176.3,22.2669297]
[1729782801246,0.7162156,176.35,176.3,22.2669297]
[1729782801842,0.7162156,176.35,176.23,6.7242]
[1729782801843,0.5907256,176.35,176.34,22.2669297]
[1729782802354,0.5907256,176.35,176.34,42.2669297]
[1729782803930,0.5907256,176.35,176.34,22.2669297]
[1729782804347,0.5907256,176.35,176.34,34.74250544]
[1729782805157,0.5907256,176.35,176.34,54.74250544]
[1729782805649,0.5907256,176.35,176.34,34.74250544]
[1729782805839,0.5907256,176.35,176.33,34.74250544]
[1729782806242,0.5907256,176.35,176.34,34.74250544]
[1729782806637,0.5907256,176.35,176.33,34.74250544]
[1729782808735,0.5907256,176.35,176.31,34.74250544]
[1729782809353,0.5907256,176.35,176.32,34.74250544]
[1729782810442,0.5907256,176.35,176.31,34.74250544]
[1729782811137,0.5907256,176.35,176.32,34.74250544]
[1729782812172,34.74250544,176.33,176.24,16.1465]
[1729782812336,34.74250544,176.3,176.25,34.74250544]
[1729782812541,34.74250544,176.31,176.25,34.74250544]
[1729782812740,6.2613256,176.35,176.24,16.1465]
[1729782812741,34.74250544,176.33,176.28,34.74250544]
[1729782813141,34.74250544,176.33,176.27,34.74250544]
[1729782813363,34.74250544,176.32,176.26,34.74250544]
[1729782813656,6.2613256,176.35,176.26,34.74250544]
[1729782813657,34.74250544,176.31,176.26,34.74250544]
[1729782815639,34.74250544,176.31,176.25,34.74250544]
[1729782816972,35.33323104,176.35,176.3,34.74250544]
[1729782818661,0.5907256,176.35,176.3,34.74250544]
[1729782818862,0.5907256,176.35,176.31,34.74250544]
[1729782819056,0.5907256,176.35,176.32,34.74250544]
[1729782820171,0.5907256,176.35,176.31,34.74250544]
[1729782820568,0.5907256,176.35,176.32,34.74250544]
[1729782820975,35.33323104,176.35,176.29,34.74250544]
[1729782821480,35.33323104,176.35,176.3,20.0]
[1729782821972,0.5907256,176.35,176.3,54.74250544]
[1729782822363,0.5907256,176.35,176.32,34.74250544]
[1729782823055,0.5907256,176.35,176.33,34.74250544]
[1729782823458,0.5907256,176.35,176.32,34.74250544]
[1729782827075,0.5907256,176.35,176.31,34.74250544]
[1729782827454,0.5907256,176.35,176.34,34.74250544]
[1729782828173,0.5907256,176.35,176.34,54.74250544]
[1729782830073,50.33420544,176.49,176.36,24.027864]
[1729782830286,15.5917,176.49,176.45,34.74250544]
[1729782831260,11.8328,176.51,176.47,34.74250544]
[1729782831465,6.2558256,176.52,176.48,34.74250544]
[1729782831890,6.2558256,176.52,176.47,34.74250544]
[1729782831891,0.12549,176.51,176.47,34.74250544]
[1729782832086,6.2558256,176.52,176.48,34.74250544]
[1729782832988,0.12549,176.51,176.48,34.74250544]
[1729782833285,0.25098,176.51,176.48,34.74250544]
[1729782833594,6.2558256,176.52,176.41,20.0]
[1729782833595,40.99833104,176.52,176.41,20.0]
[1729782833799,40.99833104,176.52,176.47,34.74250544]
[1729782833976,0.12549,176.51,176.48,34.74250544]
[1729782834178,0.5907256,176.52,176.49,34.74250544]
[1729782834684,0.5907256,176.52,176.5,34.74250544]
[1729782834893,0.5907256,176.52,176.51,34.74250544]
[1729782835987,0.5907256,176.52,176.5,34.74250544]
[1729782836198,0.5907256,176.52,176.4,50.13300544]
[1729782836199,0.5907256,176.52,176.49,34.74250544]
[1729782837292,0.5907256,176.52,176.48,34.74250544]
[1729782837475,34.74250544,176.51,176.41,23.776884]
[1729782837681,34.74250544,176.51,176.46,34.74250544]
[1729782837990,6.2559256,176.52,176.47,34.74250544]
[1729782838190,0.5907256,176.52,176.51,34.74250544]
[1729782838501,0.5907256,176.52,176.48,34.74250544]
[1729782838793,0.5907256,176.52,176.51,34.74250544]
[1729782839304,5.6615,176.63,176.51,54.74250544]
[1729782839482,6.4139,176.64,176.59,34.74250544]
[1729782840291,41.15640544,176.64,176.59,34.74250544]
[1729782840597,41.15640544,176.64,176.56,34.74250544]
[1729782840598,0.12549,176.6,176.56,34.74250544]
[1729782840780,34.74250544,176.62,176.56,34.74250544]
[1729782840983,40.40450544,176.62,176.57,34.74250544]
[1729782841191,40.40450544,176.62,176.56,34.74250544]
[1729782841396,5.6609,176.65,176.59,34.74250544]
[1729782841588,34.74250544,176.64,176.59,34.74250544]
[1729782841796,40.40340544,176.65,176.6,34.74250544]
[1729782842091,40.40340544,176.65,176.59,34.74250544]
[1729782842505,0.12549,176.63,176.59,34.74250544]
[1729782842882,0.12549,176.63,176.6,34.74250544]
[1729782843199,34.74250544,176.67,176.62,34.74250544]
[1729782843502,34.74250544,176.63,176.58,34.74250544]
[1729782844688,5.6616,176.63,176.58,34.74250544]
[1729782845380,5.6616,176.63,176.59,34.74250544]
[1729782846505,5.6599,176.68,176.62,34.74250544]
[1729782846688,34.74250544,176.67,176.61,34.74250544]
[1729782846882,34.74250544,176.66,176.61,34.74250544]
[1729782847286,6.4578,176.69,176.63,34.74250544]
[1729782847485,5.6596,176.69,176.63,34.74250544]
[1729782847690,0.12549,176.67,176.63,34.74250544]
[1729782847886,34.74250544,176.67,176.62,34.74250544]
[1729782848384,34.74250544,176.68,176.62,34.74250544]
[1729782848808,34.86799544,176.67,176.62,34.74250544]
[1729782849687,34.86799544,176.67,176.62,17.37125272]
[1729782849890,40.52819544,176.67,176.62,34.74250544]
[1729782850090,34.86799544,176.67,176.62,34.74250544]
[1729782850399,34.74250544,176.66,176.61,34.74250544]
[1729782850590,34.74250544,176.65,176.6,34.74250544]
[1729782850798,34.74250544,176.65,176.56,15.8251]
[1729782850799,34.74250544,176.64,176.59,34.74250544]
[1729782851207,34.74250544,176.62,176.57,34.74250544]
[1729782851397,34.74250544,176.6,176.55,34.74250544]
[1729782851901,34.74250544,176.62,176.57,34.74250544]
[1729782852105,24.027864,176.66,176.59,34.74250544]
[1729782852416,34.74250544,176.69,176.63,34.74250544]
[1729782852714,16.5540256,176.7,176.62,34.74250544]
[1729782852715,34.86799544,176.67,176.62,34.74250544]
[1729782853406,34.74250544,176.66,176.61,34.74250544]
[1729782853588,34.74250544,176.65,176.6,34.74250544]
[1729782853789,34.74250544,176.63,176.57,34.74250544]
[1729782854003,34.74250544,176.63,176.52,22.7578]
[1729782854004,34.74250544,176.59,176.52,22.7578]
[1729782854211,34.74250544,176.58,176.53,34.74250544]
[1729782854391,34.74250544,176.59,176.53,34.74250544]
[1729782855019,0.25098,176.62,176.52,22.7578]
[1729782855020,34.74250544,176.6,176.54,34.74250544]
[1729782855514,34.74250544,176.59,176.54,34.74250544]
[1729782855692,34.74250544,176.58,176.53,34.74250544]
[1729782856009,34.74250544,176.58,176.52,22.7578]
[1729782856010,34.74250544,176.61,176.55,34.74250544]
[1729782856495,34.74250544,176.62,176.56,34.74250544]
[1729782856825,34.74250544,176.62,176.57,34.74250544]
[1729782856992,34.74250544,176.6,176.55,34.74250544]
[1729782857301,5.6612,176.64,176.54,34.74250544]
[1729782857506,34.74250544,176.59,176.54,34.74250544]
[1729782858910,34.74250544,176.6,176.55,34.74250544]
[1729782859290,34.74250544,176.62,176.57,34.74250544]
[1729782859597,34.74250544,176.63,176.58,34.74250544]
[1729782859796,40.40400544,176.63,176.58,34.74250544]
[1729782860114,40.40400544,176.63,176.57,34.74250544]
[1729782860921,34.74250544,176.63,176.57,34.74250544]
[1729782861717,5.6597,176.69,176.62,34.74250544]
[1729782861907,34.74250544,176.68,176.63,34.74250544]
[1729782864097,34.74250544,176.67,176.62,34.74250544]
[1729782864299,34.74250544,176.66,176.61,34.74250544]
[1729782864709,34.74250544,176.67,176.62,34.74250544]
[1729782865024,34.74250544,176.68,176.63,34.74250544]
[1729782865327,40.40210544,176.69,176.64,34.74250544]
[1729782865619,34.74250544,176.68,176.63,34.74250544]
[1729782865828,40.40210544,176.69,176.64,34.74250544]
[1729782865996,34.74250544,176.68,176.63,34.74250544]
[1729782866197,34.74250544,176.67,176.62,34.74250544]
[1729782867515,34.74250544,176.68,176.63,34.74250544]
[1729782868219,34.74250544,176.69,176.64,34.74250544]
[1729782868642,0.5907256,176.7,176.66,34.74250544]
[1729782868947,0.5907256,176.7,176.69,34.74250544]
[1729782870029,0.5907256,176.7,176.69,41.16160544]
[1729782870235,15.2957,176.83,176.7,20.0]
[1729782870236,34.74250544,176.82,176.7,20.0]
[1729782870440,34.74250544,176.83,176.78,34.74250544]
[1729782870644,34.74250544,176.82,176.77,34.74250544]
[1729782870849,34.74250544,176.81,176.76,34.74250544]
[1729782871046,1.11064731,176.87,176.74,15.0993]
[1729782871047,34.74250544,176.79,176.74,34.74250544]
[1729782871253,34.74250544,176.8,176.75,34.74250544]
[1729782872362,55.33370468,176.8,176.75,55.33370468]
[1729782872753,55.33370468,176.79,176.74,55.33370468]
[1729782873054,55.33370468,176.78,176.73,55.33370468]
[1729782873356,55.33370468,176.79,176.74,55.33370468]
[1729782873650,27.66685234,176.75,176.69,21.5184]
[1729782873836,55.33370468,176.74,176.69,70.43300468]
[1729782874148,55.33370468,176.76,176.7,55.33370468]
[1729782874347,60.99120468,176.76,176.7,55.33370468]
[1729782874555,55.33370468,176.76,176.7,55.33370468]
[1729782874733,55.33370468,176.75,176.7,55.33370468]
[1729782875052,60.99120468,176.76,176.7,55.33370468]
[1729782875253,55.33370468,176.77,176.72,55.33370468]
[1729782875455,55.33370468,176.76,176.7,55.33370468]
[1729782875661,55.33370468,176.75,176.7,55.33370468]
[1729782875832,55.33370468,176.76,176.7,55.33370468]
[1729782876145,55.33370468,176.77,176.72,55.33370468]
[1729782876344,55.33370468,176.74,176.69,70.43300468]
[1729782876549,55.33370468,176.75,176.7,55.33370468]
[1729782876865,55.33370468,176.76,176.7,55.33370468]
[1729782877036,55.33370468,176.75,176.7,55.33370468]
[1729782877452,55.33370468,176.76,176.71,55.33370468]
[1729782877661,55.33370468,176.78,176.73,55.33370468]
[1729782877963,27.66685234,176.76,176.71,55.33370468]
[1729782878251,0.1,176.82,176.7,55.33370468]
[1729782878252,55.33370468,176.75,176.7,55.33370468]
[1729782878955,55.33370468,176.76,176.71,55.33370468]
[1729782880560,55.33370468,176.77,176.71,55.33370468]
[1729782880854,55.33370468,176.77,176.72,55.33370468]
[1729782881060,55.33370468,176.79,176.73,55.33370468]
[1729782881352,55.33370468,176.77,176.72,55.33370468]
[1729782881555,55.33370468,176.78,176.72,55.33370468]
[1729782881768,55.33370468,176.77,176.72,55.33370468]
[1729782881973,55.33370468,176.78,176.72,55.33370468]
[1729782883262,55.33370468,176.76,176.71,55.33370468]
[1729782886361,55.33370468,176.75,176.7,55.33370468]
[1729782886861,60.99120468,176.76,176.71,55.33370468]
[1729782887042,55.33370468,176.75,176.7,55.33370468]
[1729782887439,55.33370468,176.73,176.68,55.33370468]
[1729782887639,55.33370468,176.74,176.69,55.33370468]
[1729782888669,55.33370468,176.75,176.7,55.33370468]
[1729782889369,55.33370468,176.76,176.71,55.33370468]
[1729782890249,0.5907256,176.87,176.76,24.027864]
[1729782890447,0.5907256,176.87,176.82,55.33370468]
[1729782890640,55.92443028,176.87,176.83,55.33370468]
[1729782890839,55.33370468,176.86,176.81,27.66685234]
[1729782891044,55.33370468,176.86,176.8,55.33370468]
[1729782891369,0.5907256,176.87,176.76,55.33370468]
[1729782891370,0.5907256,176.87,176.85,55.33370468]
[1729782891874,0.5907256,176.87,176.86,55.33370468]
[1729782892462,0.5907256,176.87,176.86,34.53953852]
[1729782893257,0.5907256,176.87,176.85,34.53953852]
[1729782895464,0.5907256,176.87,176.84,34.53953852]
[1729782897550,0.5907256,176.87,176.85,34.53953852]
[1729782898450,0.5907256,176.87,176.84,34.53953852]
[1729782900264,0.5907256,176.87,176.76,15.0916]
[1729782900467,34.53953852,176.84,176.79,34.53953852]
[1729782900644,51.73666412,176.87,176.81,34.53953852]
[1729782901150,0.5907256,176.87,176.82,34.53953852]
[1729782901456,0.5907256,176.87,176.86,34.53953852]
[1729782907586,0.5907256,176.87,176.85,34.53953852]
[1729782907996,0.5907256,176.87,176.84,34.53953852]
[1729782908283,0.5907256,176.87,176.86,34.53953852]
[1729782908866,0.5907256,176.87,176.86,50.67993852]
[1729782909068,0.5907256,176.87,176.86,70.67993852]
[1729782911270,0.5907256,176.87,176.86,50.67993852]
[1729782912375,0.5907256,176.87,176.86,70.67993852]
[1729782913192,0.0907256,176.87,176.86,70.67993852]
[1729782913485,0.0907256,176.87,176.86,34.53953852]
[1729782917279,0.0907256,176.87,176.86,78.31642252]
[1729782917874,34.13026412,176.97,176.87,20.0]
[1729782918085,17.26976926,176.96,176.91,34.53953852]
[1729782918395,34.53953852,176.96,176.9,34.53953852]
[1729782918595,34.53953852,176.96,176.91,34.53953852]
[1729782919380,34.53953852,176.95,176.9,34.53953852]
[1729782920382,34.53953852,176.92,176.87,34.53953852]
[1729782921687,34.53953852,176.93,176.88,34.53953852]
[1729782922299,0.12549,176.97,176.84,34.53953852]
[1729782922300,34.53953852,176.89,176.84,34.53953852]
[1729782922482,34.53953852,176.87,176.82,34.53953852]
[1729782922793,34.53953852,176.85,176.8,34.53953852]
[1729782922996,34.53953852,176.85,176.74,6.4581]
[1729782922997,34.53953852,176.85,176.75,15.3025]
[1729782923289,17.26976926,176.86,176.81,17.26976926]
[1729782923493,34.53953852,176.86,176.81,17.26976926]
[1729782923805,6.4799,176.89,176.75,15.3025]
[1729782923806,34.53953852,176.83,176.78,34.53953852]
[1729782923981,34.53953852,176.85,176.8,34.53953852]
[1729782924499,34.53953852,176.86,176.81,34.53953852]
[1729782924878,6.4799,176.89,176.83,34.53953852]
[1729782924879,34.53953852,176.88,176.83,34.53953852]
[1729782925379,34.53953852,176.85,176.8,34.53953852]
[1729782925706,34.53953852,176.82,176.77,34.53953852]
[1729782926303,6.4799,176.89,176.81,17.26976926]
[1729782926595,34.53953852,176.88,176.83,34.53953852]
[1729782927096,34.53953852,176.88,176.82,34.53953852]
[1729782927404,34.53953852,176.88,176.83,34.53953852]
[1729782928590,34.53953852,176.9,176.85,34.53953852]
[1729782928798,15.15321091,176.96,176.86,34.53953852]
[1729782928972,34.53953852,176.91,176.86,34.53953852]
[1729782929287,9.24958171,176.96,176.79,22.8071]
[1729782929288,34.53953852,176.9,176.85,34.53953852]
[1729782930273,34.53953852,176.88,176.83,34.53953852]
[1729782930694,34.53953852,176.89,176.83,34.53953852]
[1729782930907,34.53953852,176.9,176.85,34.53953852]
[1729782931274,34.53953852,176.91,176.86,34.53953852]
[1729782931487,9.24958171,176.96,176.87,34.53953852]
[1729782931488,34.53953852,176.92,176.87,34.53953852]
[1729782932081,34.53953852,176.93,176.88,34.53953852]
[1729782932295,34.53953852,176.91,176.85,34.53953852]
[1729782932481,34.53953852,176.89,176.84,34.53953852]
[1729782933185,34.53953852,176.89,176.83,34.53953852]
[1729782933386,34.53953852,176.88,176.83,34.53953852]
[1729782933595,34.53953852,176.88,176.82,34.53953852]
[1729782933896,34.53953852,176.88,176.83,34.53953852]
[1729782934499,34.53953852,176.87,176.82,34.53953852]
[1729782934683,34.53953852,176.86,176.81,34.53953852]
[1729782934885,34.53953852,176.87,176.82,34.53953852]
[1729782935186,33.53953852,176.87,176.82,34.53953852]
[1729782935483,34.53953852,176.86,176.81,34.53953852]
[1729782935683,34.53953852,176.84,176.79,34.53953852]
[1729782936093,34.53953852,176.84,176.75,22.9794]
[1729782936094,34.53953852,176.85,176.8,34.53953852]
[1729782936298,34.53953852,176.82,176.77,34.53953852]
[1729782936604,34.53953852,176.82,176.71,21.49565154]
[1729782936605,34.53953852,176.79,176.71,21.49565154]
[1729782936811,34.53953852,176.79,176.74,34.53953852]
[1729782937795,34.53953852,176.81,176.76,34.53953852]
[1729782938304,34.53953852,176.8,176.75,34.53953852]
[1729782938509,34.53953852,176.79,176.74,34.53953852]
[1729782938696,34.53953852,176.78,176.73,34.53953852]
[1729782939097,34.53953852,176.79,176.74,34.53953852]
[1729782939898,34.53953852,176.8,176.75,34.53953852]
[1729782940290,55.3497468,176.79,176.74,55.3497468]
[1729782940990,16.4368,176.82,176.69,5.90641032]
[1729782940991,55.4752368,176.75,176.69,5.90641032]
[1729782941196,55.3497468,176.72,176.66,55.3497468]
[1729782941392,55.3497468,176.71,176.66,55.3497468]
[1729782941591,55.3497468,176.73,176.68,55.3497468]
[1729782941796,55.3497468,176.75,176.7,55.3497468]
[1729782941998,55.3497468,176.75,176.63,16.6563]
[1729782941999,55.3497468,176.77,176.72,55.3497468]
[1729782942294,55.3497468,176.8,176.75,27.6748734]
[1729782942494,55.3497468,176.8,176.76,55.3497468]
[1729782942801,55.3497468,176.79,176.75,55.3497468]
[1729782942998,55.3497468,176.8,176.75,55.3497468]
[1729782943192,55.3497468,176.8,176.69,6.6172]
[1729782943193,61.3689468,176.83,176.78,55.3497468]
[1729782943402,55.3497468,176.82,176.77,55.3497468]
[1729782943605,55.3497468,176.81,176.76,55.3497468]
[1729782944015,55.3497468,176.79,176.73,55.3497468]
[1729782944311,55.3497468,176.77,176.72,55.3497468]
[1729782944498,55.3497468,176.77,176.71,55.3497468]
[1729782944695,55.3497468,176.76,176.7,55.3497468]
[1729782944903,55.3497468,176.75,176.69,55.3497468]
[1729782945203,71.0506468,176.78,176.73,55.3497468]
[1729782945906,55.3497468,176.77,176.72,55.3497468]
[1729782946107,71.0506468,176.78,176.73,55.3497468]
[1729782946292,55.3497468,176.79,176.74,55.3497468]
[1729782947011,55.3497468,176.77,176.72,55.3497468]
[1729782947392,55.3497468,176.8,176.74,55.3497468]
[1729782947587,71.6908468,176.82,176.77,55.3497468]
[1729782947908,0.12549,176.81,176.78,55.3497468]
[1729782948511,55.4752368,176.81,176.76,55.3497468]
[1729782948721,0.12549,176.81,176.77,55.3497468]
[1729782949314,27.6748734,176.79,176.74,55.3497468]
[1729782949610,55.4752368,176.81,176.76,55.3497468]
[1729782949809,16.3063,176.86,176.7,0.1]
[1729782950005,16.4063,176.9,176.83,27.6748734]
[1729782950206,22.0592,176.9,176.83,27.6748734]
[1729782950405,27.6748734,176.87,176.82,27.6748734]
[1729782950806,27.6748734,176.85,176.8,27.6748734]
[1729782951104,0.12549,176.83,176.79,55.3497468]
[1729782951315,0.12549,176.83,176.8,55.3497468]
[1729782952119,0.12549,176.83,176.79,55.3497468]
[1729782952313,55.4752368,176.83,176.78,55.3497468]
[1729782952499,55.3497468,176.79,176.73,55.3497468]
[1729782952818,55.3497468,176.78,176.72,55.3497468]
[1729782953318,55.3497468,176.79,176.74,55.3497468]
[1729782953618,55.3497468,176.8,176.74,55.3497468]
[1729782954991,55.3497468,176.8,176.75,55.3497468]
[1729782955893,55.3497468,176.79,176.74,55.3497468]
[1729782957496,55.3497468,176.8,176.75,55.3497468]
[1729782957694,55.3497468,176.81,176.75,55.3497468]
[1729782958103,55.3497468,176.79,176.74,55.3497468]
[1729782958408,55.3497468,176.78,176.73,55.3497468]
[1729782958818,55.3497468,176.79,176.73,55.3497468]
[1729782960124,55.3497468,176.79,176.71,15.0042]
[1729782960292,34.59608178,176.79,176.73,34.59608178]
[1729782960618,34.59608178,176.79,176.71,15.0042]
[1729782960619,15.0967,176.88,176.78,34.59608178]
[1729782960914,34.59608178,176.87,176.82,34.59608178]
[1729782961094,34.59608178,176.85,176.75,6.5063]
[1729782961291,0.12549,176.86,176.75,6.5063]
[1729782961504,34.59608178,176.82,176.77,34.59608178]
[1729782961703,20.7504,176.88,176.8,34.59608178]
[1729782961909,34.59608178,176.87,176.82,34.59608178]
[1729782962111,0.12549,176.85,176.81,34.59608178]
[1729782962305,0.12549,176.85,176.8,34.59608178]
[1729782962617,0.12549,176.85,176.81,34.59608178]
[1729782962911,49.69278178,176.88,176.82,17.29804089]
[1729782963117,41.06078178,176.89,176.84,34.59608178]
[1729782963617,34.59608178,176.89,176.84,34.59608178]
[1729782964115,34.59608178,176.9,176.85,34.59608178]
[1729782964289,34.59608178,176.92,176.86,34.59608178]
[1729782964491,34.59608178,176.92,176.87,34.59608178]
[1729782965104,34.59608178,176.93,176.88,34.59608178]
[1729782965498,34.59608178,176.94,176.89,34.59608178]
[1729782966008,34.59608178,176.93,176.88,34.59608178]
[1729782966601,34.59608178,176.93,176.87,34.59608178]
[1729782966915,34.59608178,176.93,176.88,34.59608178]
[1729782967495,34.59608178,176.93,176.87,34.59608178]
[1729782967919,34.59608178,176.93,176.88,34.59608178]
[1729782968095,34.59608178,176.92,176.86,34.59608178]
[1729782969295,34.59608178,176.89,176.84,34.59608178]
[1729782969518,34.59608178,176.87,176.82,34.59608178]
[1729782969717,34.59608178,176.87,176.81,34.59608178]
[1729782970410,34.59608178,176.86,176.81,34.59608178]
[1729782970711,34.59608178,176.87,176.82,34.59608178]
[1729782971113,34.59608178,176.88,176.83,34.59608178]
[1729782971319,34.59608178,176.9,176.85,34.59608178]
[1729782971489,34.59608178,176.91,176.86,34.59608178]
[1729782971693,34.59608178,176.92,176.86,34.59608178]
[1729782971911,34.59608178,176.92,176.87,34.59608178]
[1729782972133,34.59608178,176.93,176.88,34.59608178]
[1729782973100,34.59608178,176.92,176.87,34.59608178]
[1729782974401,34.59608178,176.9,176.85,34.59608178]
[1729782975918,34.59608178,176.89,176.84,34.59608178]
[1729782976413,34.59608178,176.9,176.85,34.59608178]
[1729782977316,34.59608178,176.88,176.83,34.59608178]
[1729782977495,34.59608178,176.85,176.8,40.97188178]
[1729782977696,22.1033,176.91,176.81,34.59608178]
[1729782977697,34.59608178,176.86,176.81,34.59608178]
[1729782977914,34.59608178,176.85,176.8,40.97188178]
[1729782978204,34.59608178,176.86,176.81,34.59608178]
[1729782978797,34.59608178,176.88,176.83,34.59608178]
[1729782978998,34.59608178,176.88,176.8,6.3758]
[1729782978999,34.59608178,176.9,176.85,34.59608178]
[1729782979509,34.59608178,176.89,176.83,34.59608178]
[1729782979714,34.59608178,176.89,176.84,34.59608178]
[1729782979899,34.59608178,176.89,176.83,34.59608178]
[1729782980096,34.59608178,176.89,176.8,6.3758]